[Event "Slovakia Open 2022"]
[Site "Bratislava"]
[Date "2022.09.30"]
[Round "2.25"]
[White "Rancso, Mark"]
[Black "Romanova, Ela"]
[Result "1-0"]
[ECO "D02"]
[WhiteElo "1960"]
[BlackElo "1580"]
[Annotator "TA"]
[PlyCount "55"]
[EventDate "2022.09.30"]
[EventCountry "SVK"]
[SourceTitle "playchess.com"]
[Source "ChessBase"]
[SourceQuality "1"]
[TimeControl "2700+10"]

{[%evp 15,55,0,0,-44,-33,-40,-16,-22,-3,-60,-75,-95,-89,-117,-125,-137,-123,-227,-225,-213,-167,-143,-165,-240,-142,-140,-131,-149,-75,-222,0,0,0,-309,-279,-273,493,491,495,476,29983,29982]} 1. d4 {[%emt 0:00:06]} d5 {[%emt 0:00:02]} 2. Nf3 {[%emt 0:00:10]} Nf6 {[%emt 0:00:15]} 3. g3 {[%emt 0:00:10]} e6 {[%emt 0:01:20]} 4. Bg2 {[%emt 0:00:03]} c5 {[%emt 0:01:22]} 5. O-O {[%emt 0:00:29]} Nc6 {[%emt 0:00:31]} 6. c3 {[%emt 0:00:38]} Bd6 {[%emt 0:01:15]} 7. dxc5 {[%emt 0:00:15]} Bxc5 {[%emt 0:00:04]} 8. Nbd2 {[%emt 0:00:20]} O-O {[%emt 0:00:12] [#]} 9. Qe1 $146 {[%emt 0:00:12] D02: 1 d4 d5 2 Nf3 sidelines, including 2...Nf6 3 g3 and 2...Nf6 3 Bf4.} (9. b4 $5 {[%cal Rb4c5]} Be7 10. a3 $11) ({Predecessor:} 9. Qc2 Bb6 10. e4 d4 11. cxd4 Nxd4 12. Nxd4 Qxd4 13. Nc4 Ng4 14. Nxb6 axb6 15. Rd1 Qc5 16. Qe2 e5 {1-0 (42) Chigaev,M (2495)-Levin,E (2507) St Petersburg 2014}) 9... b6 {[%emt 0:02:54]} 10. b4 {[%emt 0:02:35]} Bd6 {[%emt 0:06:49]} 11. Bb2 {[%emt 0:03:02] The position is equal.} Bb7 {[%emt 0:04:23]} 12. b5 {[%emt 0:00:37]} (12. e4 $11 Qc7 13. exd5 exd5 14. Qb1) 12... Na5 $15 {[%emt 0:02:17]} 13. Nd4 {[%emt 0:02:00]} Qd7 {[%emt 0:02:25]} 14. e4 {[%emt 0:02:36]} e5 {[%emt 0:03:23]} 15. Nf5 {[%emt 0:04:01]} Bc5 {[%emt 0:06:03] White must now prevent ...dxe4.} (15... Qxb5 16. Nxd6 Qxb2 17. Nxb7 Nxb7 18. exd5 $15) 16. a4 {[%emt 0:03:44]} (16. c4 $17 {is a better defense.}) 16... dxe4 $19 {[%emt 0:03:38]} 17. Ne3 {[%emt 0:01:16]} Rfd8 {[%emt 0:01:52]} 18. Rd1 {[%emt 0:00:19][%cal Od2e4]} Qe6 $36 {[%emt 0:01:46][%mdl 2048] aiming for ...Qa2. Keeping White busy.} 19. Qe2 {[%emt 0:08:48]} (19. c4 $142) 19... a6 {[%emt 0:04:07]} (19... Bxe3 $19 20. fxe3 Qa2) 20. c4 $17 {[%emt 0:01:42]} Bd4 {[%emt 0:01:28]} 21. Ba3 {[%emt 0:00:24]} Rac8 {[%emt 0:00:38]} (21... Bxe3 $142 22. fxe3 axb5 23. cxb5 Rdc8) 22. h4 {[%emt 0:00:44]} (22. Bb4 $17 {was necessary.}) 22... Rd7 $2 {[%emt 0:01:44] [#]} (22... axb5 $19 {Hoping for ...Bxe3.} 23. cxb5 Bxe3 24. fxe3 Rd3) 23. Kh2 $1 $11 {[%emt 0:00:05]} Bxe3 {[%emt 0:00:13]} 24. fxe3 $4 {[%emt 0:00:12][%mdl 8192]} (24. Bh3 $1 $11 {and White is okay.} Qe8 25. fxe3 (25. Qxe3 Rd4 $11) (25. Bxd7 Qxd7 26. fxe3 Qd3 $11)) 24... Ng4+ $19 {[%emt 0:00:11] Pair of Knights!} (24... Nxc4 25. Bh3 Rxd2 26. Rxd2 $16) 25. Kg1 {[%emt 0:00:22]} Nxc4 $4 {[%emt 0:00:14][%mdl 8192]} (25... Rd3 $19 26. Bh3 h5) 26. Nxc4 $18 {[%emt 0:00:43] [#] And now Rxd7 would win.} Rxd1 {[%emt 0:00:10]} 27. Rxd1 {[%emt 0:00:07]} ({And not} 27. Qxd1 h5 28. Nd6 Nxe3 $11) 27... Qxc4 {[%emt 0:00:08]} (27... h5 $18 28. Nd6 Rd8 29. bxa6 Bxa6 30. Nxe4 Ra8 31. Qxa6 Rxa6 32. Rd8+ Kh7 33. Ng5+ Kh6) 28. Qxc4 {[%emt 0:00:06] Weighted Error Value: White=0.44/Black=0.77} 1-0

[Event "Slovakia Open 2022"]
[Site "Bratislava"]
[Date "2022.09.30"]
[Round "2.26"]
[White "Kucera, Michal"]
[Black "Dolnik, Michal"]
[Result "1-0"]
[ECO "C64"]
[WhiteElo "1927"]
[BlackElo "1485"]
[Annotator "TA"]
[PlyCount "41"]
[EventDate "2022.09.30"]
[EventCountry "SVK"]
[SourceTitle "playchess.com"]
[Source "ChessBase"]
[SourceQuality "1"]
[TimeControl "2700+10"]

{[%evp 9,41,24,36,12,28,27,55,57,251,247,252,262,292,231,333,245,236,237,239,176,229,212,278,281,293,294,389,391,428,416,402,394,643,644]} 1. e4 {[%emt 0:00:08]} e5 {[%emt 0:00:09]} 2. Nf3 {[%emt 0:00:02]} Nc6 {[%emt 0:00:02]} 3. Bb5 {[%emt 0:00:02]} Bc5 {[%emt 0:00:50]} 4. c3 {[%emt 0:00:55][%cal Bc2c3,Bc3d4][%mdl 32]} d6 {[%emt 0:00:11]} 5. h3 {[%emt 0:00:14]} Nf6 {[%emt 0:00:20]} 6. O-O {[%emt 0:00:37] Strongly threatening d4. C64: Ruy Lopez: Classical Defence (3...Bc5) except 4 0-0 Nf6.} O-O {[%emt 0:00:51]} 7. d4 {[%emt 0:00:18]} exd4 {[%emt 0:00:50]} 8. cxd4 {[%emt 0:00:07] [#] White is slightly better.} Bb4 $146 {[%emt 0:00:13] [#]} ({Black should play} 8... Bb6 $1 $14) ({Predecessor:} 8... Bb6 9. Nc3 a6 10. Ba4 h6 11. a3 d5 12. e5 Ne4 13. Bc2 Bf5 14. Bb3 Nxc3 15. bxc3 {1-0 (39) Wood,C (2102)-Singer,M (1857) Bayern 2015}) 9. Qa4 $1 $18 {[%emt 0:06:32]} a5 {[%emt 0:02:17]} 10. a3 {[%emt 0:01:32][%cal Ba2a3,Ba3b4][%mdl 32]} Bd7 {[%emt 0:01:09]} 11. Qc2 {[%emt 0:01:49]} ({Don't take} 11. axb4 Nxe4 12. Nc3 (12. bxa5 Rxa5 13. Qc2 Rxa1 $14) 12... Nxc3 13. bxc3 axb4 $18) 11... Qe7 {[%emt 0:01:55]} (11... Re8 $142 12. Bd3 (12. axb4 Nxb4 13. Qe2 Nxe4 $16) 12... Qc8) 12. Bxc6 {[%emt 0:10:19]} Bxc6 {[%emt 0:00:39]} 13. axb4 {[%emt 0:04:30] Hoping for d5.} Bxe4 {[%emt 0:00:43]} 14. Qb3 {[%emt 0:01:11]} a4 {[%emt 0:02:43]} (14... axb4 {might work better.} 15. Rxa8 Rxa8) 15. Qa3 {[%emt 0:03:25]} Rfe8 {[%emt 0:00:46]} 16. Bg5 {[%emt 0:00:46]} Qe6 {[%emt 0:01:04]} 17. Nbd2 {[%emt 0:00:21]} Qf5 {[%emt 0:01:26]} 18. Bxf6 {[%emt 0:01:10]} Qxf6 {[%emt 0:00:19]} 19. Nxe4 {[%emt 0:00:35]} Rxe4 {[%emt 0:00:11]} 20. Rfe1 {[%emt 0:00:09]} Rf4 {[%emt 0:01:06] [#]} (20... Qf5 21. Qc3 Rxe1+ 22. Rxe1 Qd7) 21. Qxa4 $1 {[%emt 0:00:39][%mdl 512] White took control after the opening.  Weighted Error Value: White=0.18 (very precise) /Black=0.71} 1-0

[Event "Slovakia Open 2022"]
[Site "Bratislava"]
[Date "2022.09.30"]
[Round "2.27"]
[White "Benci, Jozef"]
[Black "Prochazka, Peter"]
[Result "1/2-1/2"]
[ECO "B23"]
[WhiteElo "1873"]
[BlackElo "1792"]
[Annotator "NA COMBH"]
[PlyCount "96"]
[EventDate "2022.09.30"]
[EventCountry "SVK"]
[SourceTitle "playchess.com"]
[Source "ChessBase"]
[SourceQuality "1"]
[TimeControl "2700+10"]

1. e4 {[%emt 0:00:04]} c5 {[%emt 0:04:29]} 2. Nc3 {[%emt 0:00:12]} e6 {[%emt 0:01:22]} 3. f4 {[%emt 0:00:08]} a6 {[%emt 0:01:42]} 4. a4 {[%emt 0:01:27]} Nc6 {[%emt 0:00:48]} 5. Bc4 {[%emt 0:01:40]} Qc7 {[%emt 0:01:28]} 6. d3 {[%emt 0:01:10]} Be7 {[%emt 0:02:10]} 7. Nf3 {[%emt 0:00:24]} d6 {[%emt 0:02:26]} 8. O-O {[%emt 0:00:18]} Nf6 {[%emt 0:00:53]} 9. Qe1 {[%emt 0:00:08]} O-O {[%emt 0:02:35]} 10. Qg3 {[%emt 0:00:31]} Nh5 {[%emt 0:00:55]} 11. Qh3 {[%emt 0:01:35]} g6 {[%emt 0:01:06]} 12. Ng5 {[%emt 0:03:01]} Qd8 {[%emt 0:05:57]} 13. Bd2 {[%emt 0:04:22]} d5 {[%emt 0:02:16]} 14. Bb3 {[%emt 0:02:08]} e5 {[%emt 0:04:09]} 15. Qf3 {[%emt 0:04:44]} Nd4 {[%emt 0:01:00]} 16. Qf2 {[%emt 0:00:52]} exf4 {[%emt 0:05:17]} 17. Nf3 {[%emt 0:01:17]} Nxb3 {[%emt 0:01:24]} 18. cxb3 {[%emt 0:00:03]} d4 {[%emt 0:00:22]} 19. Nd5 {[%emt 0:00:33]} Be6 {[%emt 0:01:36]} 20. Nxf4 {[%emt 0:00:23]} Nxf4 {[%emt 0:00:04]} 21. Bxf4 {[%emt 0:00:01]} Bxb3 {[%emt 0:00:09]} 22. Bh6 {[%emt 0:01:34]} Re8 {[%emt 0:00:02]} 23. Ne5 {[%emt 0:00:19]} Bh4 {[%emt 0:02:19]} 24. Qf4 {[%emt 0:02:21]} Qe7 {[%emt 0:03:22]} 25. Nf3 {[%emt 0:04:57]} Bf6 {[%emt 0:00:02]} 26. Ng5 {[%emt 0:01:00]} Bg7 {[%emt 0:00:24]} 27. Qh4 {[%emt 0:02:29]} Qf8 {[%emt 0:00:28]} 28. Bxg7 {[%emt 0:00:33]} Qxg7 {[%emt 0:00:10]} 29. Rf2 {[%emt 0:00:41]} h6 {[%emt 0:00:00]} 30. Nh3 {[%emt 0:00:28]} Rac8 {[%emt 0:00:21]} 31. Raf1 {[%emt 0:01:01]} Rc7 {[%emt 0:00:38]} 32. Qg3 {[%emt 0:02:12]} Ree7 {[%emt 0:00:01]} 33. Rf6 {[%emt 0:00:26]} Bxa4 {[%emt 0:00:32]} 34. e5 {[%emt 0:01:43]} Rc6 {[%emt 0:00:05]} 35. Qf3 {[%emt 0:01:19]} Bb3 {[%emt 0:00:11]} 36. Nf2 {[%emt 0:02:58]} Rce6 {[%emt 0:00:13]} 37. Ng4 {[%emt 0:01:37]} h5 {[%emt 0:00:05]} 38. Rxe6 {[%emt 0:00:38]} Bxe6 {[%emt 0:00:02]} 39. Nf6+ {[%emt 0:00:03]} Kh8 {[%emt 0:00:04]} 40. Qe4 {[%emt 0:00:17]} Rc7 {[%emt 0:00:02]} 41. Qe1 {[%emt 0:00:11]} Bf5 {[%emt 0:00:04]} 42. Qh4 {[%emt 0:00:08]} Rc8 {[%emt 0:00:05]} 43. Rxf5 {[%emt 0:00:06]} Qh6 {[%emt 0:00:08]} 44. Rf1 {[%emt 0:00:12]} Qe3+ {[%emt 0:00:04]} 45. Qf2 {[%emt 0:00:01]} Qxd3 {[%emt 0:00:03]} 46. Nxh5 {[%emt 0:00:21]} Kh7 {[%emt 0:00:00]} 47. Qxf7+ {[%emt 0:00:12]} Kh8 {[%emt 0:00:00]} 48. Qf6+ {[%emt 0:00:10]} Kh7 {[%emt 0:00:00]} 1/2-1/2

[Event "Slovakia Open 2022"]
[Site "Bratislava"]
[Date "2022.09.30"]
[Round "2.28"]
[White "Rosol, Philip"]
[Black "Rehacek, Jan"]
[Result "1-0"]
[ECO "D35"]
[WhiteElo "1885"]
[BlackElo "1342"]
[Annotator "NA RC COMBH"]
[PlyCount "45"]
[EventDate "2022.09.30"]
[EventCountry "SVK"]
[SourceTitle "playchess.com"]
[Source "ChessBase"]
[SourceQuality "1"]
[TimeControl "2700+10"]

1. d4 {[%emt 0:00:04]} d5 {[%emt 0:00:05]} 2. c4 {[%emt 0:00:03]} e6 {[%emt 0:00:09]} 3. Nc3 {[%emt 0:00:04]} Nf6 {[%emt 0:00:28]} 4. cxd5 {[%emt 0:00:04]} exd5 {[%emt 0:00:21]} 5. Bg5 {[%emt 0:00:04]} Be7 {[%emt 0:00:28]} 6. e3 {[%emt 0:00:23]} c6 {[%emt 0:00:55]} 7. Bd3 {[%emt 0:00:20]} Be6 {[%emt 0:01:10]} 8. Qc2 {[%emt 0:00:31]} h6 {[%emt 0:01:07]} 9. Bf4 {[%emt 0:01:27]} Bd6 {[%emt 0:00:59]} 10. Nge2 {[%emt 0:00:49]} Bxf4 {[%emt 0:00:29]} 11. Nxf4 {[%emt 0:00:08]} Qd6 {[%emt 0:02:43]} 12. Nxe6 {[%emt 0:03:47]} Qxe6 {[%emt 0:00:08]} 13. O-O {[%emt 0:00:50]} Nbd7 {[%emt 0:01:47]} 14. Bf5 {[%emt 0:04:43]} Qd6 {[%emt 0:00:29]} 15. h3 {[%emt 0:07:18]} Nf8 {[%emt 0:03:07]} 16. e4 {[%emt 0:02:01]} Qc7 {[%emt 0:05:08]} 17. exd5 {[%emt 0:06:45]} cxd5 {[%emt 0:00:27]} 18. Rfe1+ {[%emt 0:00:50]} Kd8 {[%emt 0:00:39]} 19. Qb3 {[%emt 0:00:56]} Qc6 {[%emt 0:02:14]} 20. Rac1 {[%emt 0:02:24]} N8d7 {[%emt 0:00:39]} 21. Na4 {[%emt 0:01:04]} Qa6 {[%emt 0:01:00]} 22. Bxd7 {[%emt 0:02:37]} Kxd7 {[%emt 0:02:02]} 23. Nc5+ {[%emt 0:00:09]} 1-0

[Event "Slovakia Open 2022"]
[Site "Bratislava"]
[Date "2022.09.30"]
[Round "2.29"]
[White "Rehacek, Oldrich"]
[Black "Durovka, Stefan"]
[Result "0-1"]
[ECO "A06"]
[WhiteElo "1366"]
[BlackElo "1783"]
[Annotator "NA RC COMBH"]
[PlyCount "72"]
[EventDate "2022.09.30"]
[EventCountry "SVK"]
[SourceTitle "playchess.com"]
[Source "ChessBase"]
[SourceQuality "1"]
[TimeControl "2700+10"]

1. b3 {[%emt 0:00:06]} d5 {[%emt 0:00:10]} 2. Bb2 {[%emt 0:00:03]} Nf6 {[%emt 0:00:12]} 3. e3 {[%emt 0:00:02]} Nc6 {[%emt 0:00:03]} 4. Nf3 {[%emt 0:00:04]} Bg4 {[%emt 0:00:03]} 5. Be2 {[%emt 0:00:03]} e6 {[%emt 0:00:04]} 6. h3 {[%emt 0:00:16]} Bh5 {[%emt 0:00:01]} 7. O-O {[%emt 0:00:04]} Bd6 {[%emt 0:00:04]} 8. Nd4 {[%emt 0:00:35]} Bxe2 {[%emt 0:00:17]} 9. Qxe2 {[%emt 0:00:33]} Nxd4 {[%emt 0:00:03]} 10. Bxd4 {[%emt 0:00:08]} O-O {[%emt 0:00:12]} 11. Qb5 {[%emt 0:02:13]} b6 {[%emt 0:00:36]} 12. Qe2 {[%emt 0:04:55]} e5 {[%emt 0:00:07]} 13. Bb2 {[%emt 0:00:08]} c5 {[%emt 0:00:03]} 14. d3 {[%emt 0:01:14]} Re8 {[%emt 0:00:09]} 15. Qf3 {[%emt 0:00:47]} a5 {[%emt 0:00:56]} 16. c4 {[%emt 0:00:37]} d4 {[%emt 0:01:08]} 17. e4 {[%emt 0:01:19]} h6 {[%emt 0:00:10]} 18. Na3 {[%emt 0:00:10]} a4 {[%emt 0:00:08]} 19. Nb5 {[%emt 0:00:31]} Bf8 {[%emt 0:00:09]} 20. Qd1 {[%emt 0:02:38]} axb3 {[%emt 0:00:21]} 21. axb3 {[%emt 0:01:23]} Qd7 {[%emt 0:00:18]} 22. Qe2 {[%emt 0:02:49]} g6 {[%emt 0:00:20]} 23. Rxa8 {[%emt 0:01:36]} Rxa8 {[%emt 0:00:02]} 24. Ra1 {[%emt 0:00:09]} Qb7 {[%emt 0:00:19]} 25. Qd1 {[%emt 0:01:42]} Nh5 {[%emt 0:00:33]} 26. g3 {[%emt 0:02:17]} Qc8 {[%emt 0:00:15]} 27. Rxa8 {[%emt 0:00:34]} Qxa8 {[%emt 0:00:03]} 28. Qa1 {[%emt 0:01:04]} Qc8 {[%emt 0:00:13]} 29. Kh2 {[%emt 0:00:31]} f5 {[%emt 0:00:11]} 30. f3 {[%emt 0:02:02]} g5 {[%emt 0:00:17]} 31. Qa7 {[%emt 0:01:00]} g4 {[%emt 0:01:08]} 32. fxg4 {[%emt 0:02:21]} fxg4 {[%emt 0:00:04]} 33. h4 {[%emt 0:00:23]} Qd8 {[%emt 0:00:11]} 34. Qc7 {[%emt 0:00:42]} Qf6 {[%emt 0:00:15]} 35. Kg1 {[%emt 0:06:23]} Nxg3 {[%emt 0:00:07]} 36. Kg2 {[%emt 0:00:35]} Qf3+ {[%emt 0:00:26]} 0-1

[Event "Slovakia Open 2022"]
[Site "Bratislava"]
[Date "2022.09.30"]
[Round "2.30"]
[White "Csontos, Aron"]
[Black "Hlavac, Tomas"]
[Result "1-0"]
[ECO "C06"]
[WhiteElo "1962"]
[BlackElo "1554"]
[Annotator "TA"]
[PlyCount "73"]
[EventDate "2022.09.30"]
[EventCountry "SVK"]
[SourceTitle "playchess.com"]
[Source "ChessBase"]
[SourceQuality "1"]
[TimeControl "2700+10"]

{[%evp 13,73,23,22,14,38,41,62,53,92,51,101,29,86,36,27,-3,6,-50,0,1,0,0,10,0,32,-104,-94,-106,-100,-91,83,75,253,268,323,330,313,320,445,416,569,182,220,282,795,757,1142,1074,6315,2569,29986,29987,29987,29988,29989,29988,29990,29991,29996,29997,29998,29999]} 1. e4 {[%emt 0:00:05][%cal Be2e4,Be4e5][%mdl 32]} e6 {[%emt 0:00:02]} 2. d4 {[%emt 0:00:02]} d5 {[%emt 0:00:01]} 3. Nd2 {[%emt 0:00:02]} Nf6 {[%emt 0:00:04]} 4. e5 {[%emt 0:00:02]} Nfd7 {[%emt 0:00:01]} 5. Bd3 {[%emt 0:00:02]} c5 {[%emt 0:00:09]} 6. c3 {[%emt 0:00:02]} Nc6 {[%emt 0:00:07]} 7. Ngf3 {[%emt 0:00:06]} a6 {[%emt 0:00:55]} 8. O-O {[%emt 0:00:37] C06: French Tarrasch: 3...Nf6 4 e5 Nfd7 5 Bd3 main lines.} b5 {[%emt 0:00:05][%cal Bb7b5,Bb5b4][%mdl 32]} 9. Re1 {[%emt 0:02:52]} c4 {[%emt 0:00:17]} 10. Bc2 {[%emt 0:00:11] [#] White is slightly better.} b4 $146 {[%emt 0:00:47]} ({Predecessor:} 10... Be7 11. Nf1 Nb6 12. h3 Bd7 13. N3h2 h5 14. f4 Qc7 15. Nf3 O-O-O 16. Be3 Kb7 17. Bf2 Ra8 18. Bh4 a5 19. Bxe7 Nxe7 20. Ng5 Raf8 21. Qf3 f6 22. exf6 Rxf6 {½-½ (22) Wessendorf,T (2315)-Eingorn,V (2576) Bad Wiessee 2007}) 11. Nf1 {[%emt 0:01:32] aiming for Ng5.} (11. Nxc4 {feels hotter.} dxc4 12. d5 Bb7 13. dxc6 Bxc6 14. Bg5) 11... Nb6 {[%emt 0:00:24]} (11... Be7 $14) 12. Be3 {[%emt 0:00:29]} (12. Ng5 $16) 12... Bd7 {[%emt 0:00:23]} (12... a5 $11) 13. N3d2 {[%emt 0:02:04]} (13. Ng5 $16) 13... a5 $14 {[%emt 0:01:30][%cal Ba6a5,Ba5a4,Ba4b3][%mdl 32]} 14. f4 {[%emt 0:03:05]} a4 {[%emt 0:01:12]} 15. cxb4 {[%emt 0:08:58]} ({Better is} 15. a3 $11) 15... Bxb4 {[%emt 0:02:48]} (15... Nxb4 $15 16. a3 Nd3) 16. a3 $11 {[%emt 0:00:08]} Be7 {[%emt 0:01:12]} 17. Qf3 {[%emt 0:01:53]} Na5 {[%emt 0:02:42]} 18. g4 {[%emt 0:02:54]} Nb3 {[%emt 0:00:14]} (18... Rc8 $5 {[%cal Rc4c3]}) 19. Bxb3 {[%emt 0:02:09]} (19. Rab1 $14 {stays ahead.}) 19... axb3 $17 {[%emt 0:01:28]} ({Worse is} 19... cxb3 20. Rac1 $15) 20. f5 {[%emt 0:00:39]} Rc8 {[%emt 0:03:05]} 21. Ng3 {[%emt 0:01:46]} Bg5 $2 {[%emt 0:02:25] [#]} (21... O-O $1 $17 22. Rab1 f6) 22. Nh5 $1 $36 {[%emt 0:01:03][%mdl 2048] Keeping Black busy.} Rg8 {[%emt 0:06:32] [#] A mistake that costs the game.} (22... Kf8 $16) 23. f6 $1 $18 {[%emt 0:01:17]} gxf6 {[%emt 0:03:51]} 24. Bxg5 {[%emt 0:00:06][%mdl 64] Remove Defender} Rxg5 {[%emt 0:00:07]} 25. Nxf6+ {[%emt 0:00:06]} Ke7 {[%emt 0:00:25]} 26. Rf1 {[%emt 0:02:04][%cal Of6d5] White wants to mate with Nxd5+!} Qh8 {[%emt 0:00:19]} 27. Nxh7 $2 {[%emt 0:02:05] Pair of Knights!} Rxg4+ {[%emt 0:02:43]} 28. Qxg4 {[%emt 0:00:05] Intending Qg5+ and mate. Chess con chili.} Rg8 {[%emt 0:00:10] Inhibits Qg5+.} (28... Qxh7 29. Qg5+ Kf8) 29. Ng5 {[%emt 0:00:11]} c3 {[%emt 0:01:37]} 30. bxc3 {[%emt 0:01:17]} Nc4 {[%emt 0:00:35]} 31. Nxc4 {[%emt 0:00:53]} dxc4 {[%emt 0:00:02]} 32. Rxf7+ {[%emt 0:00:25] White mates.} Kd8 {[%emt 0:00:16]} 33. h4 {[%emt 0:02:02]} Kc8 {[%emt 0:00:46]} 34. Raf1 {[%emt 0:00:28]} b2 {[%emt 0:00:44]} 35. Qe4 {[%emt 0:00:33]} Kc7 {[%emt 0:01:57] [#]} 36. Rxd7+ $1 {[%emt 0:00:30]} Kxd7 {[%emt 0:00:03]} (36... Kb6 37. Rb7+) 37. Rf7+ {[%emt 0:00:04] Weighted Error Value: White=0.36/Black=0.70} 1-0

[Event "Slovakia Open 2022"]
[Site "Bratislava"]
[Date "2022.09.30"]
[Round "2.31"]
[White "Shykhnenko, Hryhorii"]
[Black "Pekar, Matus"]
[Result "1-0"]
[ECO "B07"]
[WhiteElo "1317"]
[BlackElo "1679"]
[Annotator "NA RC COMBH"]
[PlyCount "72"]
[EventDate "2022.09.30"]
[EventCountry "SVK"]
[SourceTitle "playchess.com"]
[Source "ChessBase"]
[SourceQuality "1"]
[TimeControl "2700+10"]

1. e4 {[%emt 0:00:03]} d6 {[%emt 0:01:14]} 2. d4 {[%emt 0:00:03]} Nf6 {[%emt 0:00:02]} 3. Nc3 {[%emt 0:00:02]} g6 {[%emt 0:00:01]} 4. Bf4 {[%emt 0:00:08]} a6 {[%emt 0:00:26]} 5. g3 {[%emt 0:00:37]} Nc6 {[%emt 0:01:08]} 6. Nge2 {[%emt 0:00:36]} Bg7 {[%emt 0:01:15]} 7. Bg2 {[%emt 0:01:59]} O-O {[%emt 0:00:22]} 8. d5 {[%emt 0:03:02]} Nb8 {[%emt 0:01:50]} 9. Qd2 {[%emt 0:00:21]} Nbd7 {[%emt 0:00:33]} 10. Bh6 {[%emt 0:00:24]} Ne5 {[%emt 0:03:59]} 11. O-O-O {[%emt 0:03:08]} Nc4 {[%emt 0:05:41]} 12. Qg5 {[%emt 0:00:54]} c5 {[%emt 0:01:53]} 13. h4 {[%emt 0:04:50]} Bxh6 {[%emt 0:02:02]} 14. Qxh6 {[%emt 0:00:04]} Ng4 {[%emt 0:00:05]} 15. Qf4 {[%emt 0:00:02]} h5 {[%emt 0:00:36]} 16. Bh3 {[%emt 0:04:20]} Nce5 {[%emt 0:01:34]} 17. Rdf1 {[%emt 0:01:32]} b5 {[%emt 0:02:41]} 18. Bxg4 {[%emt 0:06:01]} Bxg4 {[%emt 0:01:08]} 19. f3 {[%emt 0:00:21]} Bd7 {[%emt 0:03:30]} 20. Rfg1 {[%emt 0:03:36]} b4 {[%emt 0:01:24]} 21. Nd1 {[%emt 0:00:49]} Qa5 {[%emt 0:02:24]} 22. Kb1 {[%emt 0:00:51]} c4 {[%emt 0:03:38]} 23. Nd4 {[%emt 0:02:12]} Qc5 {[%emt 0:03:41]} 24. Qe3 {[%emt 0:01:03]} Kg7 {[%emt 0:01:05]} 25. Nf2 {[%emt 0:01:12]} Nxf3 {[%emt 0:00:41]} 26. Nf5+ {[%emt 0:01:49]} Bxf5 {[%emt 0:01:01]} 27. Qxf3 {[%emt 0:00:02]} Bd7 {[%emt 0:01:33]} 28. g4 {[%emt 0:00:16]} hxg4 {[%emt 0:00:34]} 29. Nxg4 {[%emt 0:00:08]} f5 {[%emt 0:00:39]} 30. Nf2 {[%emt 0:01:47]} fxe4 {[%emt 0:00:18]} 31. Rxg6+ {[%emt 0:04:25]} Kxg6 {[%emt 0:00:46]} 32. Rg1+ {[%emt 0:00:01]} Kh6 {[%emt 0:00:31]} 33. Ng4+ {[%emt 0:00:20]} Kh7 {[%emt 0:00:57]} 34. Nf6+ {[%emt 0:00:40]} Rxf6 {[%emt 0:00:39]} 35. Qh5+ {[%emt 0:00:01]} Rh6 {[%emt 0:00:17]} 36. Qf7+ {[%emt 0:00:01]} Kh8 {[%emt 0:00:06]} 1-0

[Event "Slovakia Open 2022"]
[Site "Bratislava"]
[Date "2022.09.30"]
[Round "2.32"]
[White "Melih, Mario"]
[Black "Nosal, Tobias"]
[Result "1-0"]
[ECO "B33"]
[WhiteElo "1633"]
[BlackElo "1601"]
[Annotator "NA RC COMBH"]
[PlyCount "115"]
[EventDate "2022.09.30"]
[EventCountry "SVK"]
[SourceTitle "playchess.com"]
[Source "ChessBase"]
[SourceQuality "1"]
[TimeControl "2700+10"]

1. e4 {[%emt 0:00:03]} c5 {[%emt 0:00:01]} 2. Nf3 {[%emt 0:00:05]} Nc6 {[%emt 0:00:01]} 3. d4 {[%emt 0:00:30]} cxd4 {[%emt 0:00:02]} 4. Nxd4 {[%emt 0:00:02]} Nf6 {[%emt 0:00:01]} 5. Nc3 {[%emt 0:00:02]} e5 {[%emt 0:00:01]} 6. Ndb5 {[%emt 0:00:03]} d6 {[%emt 0:00:02]} 7. Bg5 {[%emt 0:00:34]} a6 {[%emt 0:00:01]} 8. Na3 {[%emt 0:00:04]} b5 {[%emt 0:00:02]} 9. Nd5 {[%emt 0:00:17]} Be7 {[%emt 0:00:09]} 10. Bxf6 {[%emt 0:01:29]} Bxf6 {[%emt 0:00:26]} 11. c4 {[%emt 0:01:01]} b4 {[%emt 0:00:01]} 12. Nc2 {[%emt 0:00:03]} O-O {[%emt 0:00:25]} 13. Ncxb4 {[%emt 0:10:35]} Nxb4 {[%emt 0:00:29]} 14. Nxb4 {[%emt 0:00:03]} Qb6 {[%emt 0:01:41]} 15. Qd2 {[%emt 0:00:02]} Rb8 {[%emt 0:02:46]} 16. a3 {[%emt 0:00:45]} a5 {[%emt 0:03:02]} 17. Nd3 {[%emt 0:00:07]} Ba6 {[%emt 0:02:38]} 18. Rc1 {[%emt 0:06:34]} Rfc8 {[%emt 0:02:29]} 19. b4 {[%emt 0:10:55]} Bxc4 {[%emt 0:05:58]} 20. bxa5 {[%emt 0:00:46]} Qb3 {[%emt 0:08:32]} 21. Be2 {[%emt 0:02:59]} h6 {[%emt 0:02:41]} 22. g3 {[%emt 0:01:11]} Bg5 {[%emt 0:01:42]} 23. f4 {[%emt 0:00:04]} exf4 {[%emt 0:00:03]} 24. gxf4 {[%emt 0:00:03]} Bh4+ {[%emt 0:01:28]} 25. Nf2 {[%emt 0:01:20]} Bxe2 {[%emt 0:02:27]} 26. Kxe2 {[%emt 0:00:03]} Qxa3 {[%emt 0:02:19]} 27. Ra1 {[%emt 0:04:45]} Qb2 {[%emt 0:01:34]} 28. Nd3 {[%emt 0:01:02]} Qd4 {[%emt 0:01:07]} 29. Qe3 {[%emt 0:00:55]} Rc2+ {[%emt 0:02:28]} 30. Kf3 {[%emt 0:00:03]} Qc4 {[%emt 0:03:17]} 31. a6 {[%emt 0:01:34]} Ra8 {[%emt 0:00:49]} 32. a7 {[%emt 0:01:11]} Qc7 {[%emt 0:01:03]} 33. Rhb1 {[%emt 0:00:44]} Rc3 {[%emt 0:00:28]} 34. Kg4 {[%emt 0:00:38]} Bf6 {[%emt 0:00:17]} 35. Qb6 {[%emt 0:00:14]} Qxb6 {[%emt 0:00:15]} 36. Rxb6 {[%emt 0:00:04]} Rcc8 {[%emt 0:00:06]} 37. Raa6 {[%emt 0:00:12]} Be7 {[%emt 0:00:13]} 38. Nb4 {[%emt 0:00:09]} Kh7 {[%emt 0:00:10]} 39. Nd5 {[%emt 0:00:07]} Bf8 {[%emt 0:00:12]} 40. Rb7 {[%emt 0:00:05]} Kg8 {[%emt 0:00:10]} 41. Nb6 {[%emt 0:00:04]} Rxa7 {[%emt 0:00:11]} 42. Raxa7 {[%emt 0:00:04]} Rc1 {[%emt 0:00:10]} 43. Rxf7 {[%emt 0:00:21]} Rg1+ {[%emt 0:00:02]} 44. Kf3 {[%emt 0:00:02]} Rf1+ {[%emt 0:00:05]} 45. Ke2 {[%emt 0:00:06]} Rb1 {[%emt 0:00:13]} 46. Nd5 {[%emt 0:00:03]} Rb2+ {[%emt 0:00:07]} 47. Kf3 {[%emt 0:00:02]} Rxh2 {[%emt 0:00:13]} 48. Rfd7 {[%emt 0:00:25]} Rh3+ {[%emt 0:00:12]} 49. Kg4 {[%emt 0:00:04]} Rh1 {[%emt 0:00:09]} 50. Ra8 {[%emt 0:00:09]} Rg1+ {[%emt 0:00:09]} 51. Kf3 {[%emt 0:00:16]} Rf1+ {[%emt 0:00:18]} 52. Ke2 {[%emt 0:00:03]} Rg1 {[%emt 0:00:04]} 53. Rdd8 {[%emt 0:00:02]} Kh7 {[%emt 0:00:18]} 54. Rxf8 {[%emt 0:00:03]} Rg2+ {[%emt 0:00:08]} 55. Kf3 {[%emt 0:00:01]} Rg1 {[%emt 0:00:11]} 56. f5 {[%emt 0:00:05]} Rg3+ {[%emt 0:00:08]} 57. Kxg3 {[%emt 0:00:08]} g6 {[%emt 0:00:15]} 58. Ra7# {[%emt 0:00:03]} 1-0